fUST/lending_fUST_20250901
["ID","MTS","AMOUNT","RATE_DAILY","PERIOD"]
[382675762,1756705860379,-480.0,0.00015053,2]
[382675763,1756705860388,-480.0,0.00015053,2]
[382675764,1756705860397,-480.0,0.00015053,2]
[382675765,1756705860408,-584.16381811,0.00015053,2]
[382675766,1756705860419,-480.0,0.00015053,2]
[382675767,1756705860430,-299.371053,0.00015053,2]
[382675768,1756705860441,-480.0,0.00015053,2]
[382675769,1756705860451,-480.0,0.00015053,2]
[382675770,1756705860463,-861.77,0.00015053,2]
[382675771,1756705860473,-988.7,0.00015053,2]
[382675772,1756705860484,-480.0,0.00015053,2]
[382675773,1756705860495,-480.0,0.00015053,2]
[382675774,1756705860505,-509.77,0.00015053,2]
[382675775,1756705860515,-480.0,0.00015053,2]
[382675776,1756705860524,-969.64,0.00015053,2]
[382675777,1756705860534,-480.0,0.00015053,2]
[382675778,1756705860543,-588.55029623,0.00015053,2]
[382675779,1756705860553,-480.0,0.00015053,2]
[382675780,1756705860562,-480.0,0.00015053,2]
[382675781,1756705860571,-482.36,0.00015053,2]
[382675782,1756705860580,-241.54061496,0.00015053,2]
[382675783,1756705860590,-480.0,0.00015053,2]
[382675784,1756705860599,-480.0,0.00015053,2]
[382675785,1756705860608,-480.0,0.00015053,2]
[382675786,1756705860617,-480.0,0.00015053,2]
[382675787,1756705860626,-660.19,0.00015053,2]
[382675788,1756705860635,-764.66,0.00015053,2]
[382675789,1756705860644,-783.34,0.00015053,2]
[382675790,1756705860655,-480.0,0.00015053,2]
[382675791,1756705860665,-480.0,0.00015053,2]
[382675792,1756705860675,-500.77,0.00015053,2]
[382675793,1756705860684,-480.0,0.00015053,2]
[382675794,1756705860695,-480.0,0.00015053,2]
[382675795,1756705860704,-480.0,0.00015053,2]
[382675796,1756705860714,-480.0,0.00015053,2]
[382675797,1756705860724,-480.0,0.00015053,2]
[382675798,1756705860734,-822.59,0.00015053,2]
[382675799,1756705860743,-480.0,0.00015053,2]
[382675800,1756705860752,-480.0,0.00015053,2]
[382675801,1756705860762,-570.92,0.00015053,2]
[382675802,1756705860771,-1104.84,0.00015053,2]
[382675803,1756705860786,-480.0,0.00015053,2]
[382675804,1756705860795,-480.0,0.00015053,2]
[382675805,1756705860805,-480.0,0.00015053,2]
[382675806,1756705860814,-480.0,0.00015053,2]
[382675807,1756705860824,-480.0,0.00015053,2]
[382675808,1756705860833,-480.0,0.00015053,2]
[382675809,1756705860842,-480.0,0.00015053,2]
[382675810,1756705860852,-480.0,0.00015053,2]
[382675811,1756705860861,-480.0,0.00015053,2]
[382675812,1756705860870,-480.0,0.00015053,2]
[382675813,1756705860879,-480.0,0.00015053,2]
[382675814,1756705860888,-533.97,0.00015053,2]
[382675815,1756705860897,-480.0,0.00015053,2]
[382675816,1756705860906,-669.49,0.00015053,2]
[382675817,1756705860915,-775.85,0.00015053,2]
[382675818,1756705860928,-480.0,0.00015053,2]
[382675819,1756705860937,-480.0,0.00015053,2]
[382675820,1756705860946,-482.24831046,0.00015053,2]
[382675821,1756705860955,-274.67077006,0.00015053,2]
[382675822,1756705860964,-546.95,0.00015053,2]
[382675823,1756705860973,-480.0,0.00015053,2]
[382675824,1756705860983,-980.42,0.00015053,2]
[382675825,1756705860992,-318.72120526,0.00015053,2]
[382675826,1756705861001,-480.0,0.00015053,2]
[382675827,1756705861011,-871.82,0.00015053,2]
[382675828,1756705861021,-512.89,0.00015053,2]
[382675829,1756705861030,-480.0,0.00015053,2]
[382675830,1756705861040,-480.0,0.00015053,2]
[382675831,1756705861049,-480.0,0.00015053,2]
[382675832,1756705861059,-623.68467902,0.00015053,2]
[382675833,1756705861069,-480.0,0.00015053,2]
[382675834,1756705861078,-480.0,0.00015053,2]
[382675835,1756705861087,-480.0,0.00015053,2]
[382675836,1756705861097,-480.0,0.00015053,2]
[382675837,1756705861107,-536.17,0.00015053,2]
[382675838,1756705861116,-1295.49,0.00015053,2]
[382675839,1756705861126,-480.0,0.00015053,2]
[382675840,1756705861142,-480.0,0.00015053,2]
[382675841,1756705861152,-761.22,0.00015053,2]
[382675842,1756705861162,-480.0,0.00015053,2]
[382675843,1756705861172,-356.8862492,0.00015053,2]
[382675844,1756705861182,-579.03265243,0.00015053,2]
[382675845,1756705861192,-480.0,0.00015056,2]
[382675846,1756705861202,-480.0,0.00015056,2]
[382675847,1756705861213,-657.94,0.00015056,2]
[382675848,1756705861223,-480.0,0.00015056,2]
[382675849,1756705861233,-480.0,0.00015056,2]
[382675850,1756705861242,-550.62,0.00015056,2]
[382675851,1756705861252,-480.0,0.00015057,2]
[382675852,1756705861262,-542.83,0.00015057,2]
[382675853,1756705861271,-500.0,0.00015059,2]
[382675854,1756705861281,-156.16563522,0.00015059,2]
[382675855,1756705861291,-156.17964755,0.00015059,2]
[382675856,1756705861301,-158.43210087,0.00015059,2]
[382675857,1756705861311,-151.0,0.00015059,2]
[382675858,1756705861320,-2000.0,0.00015068,2]
[382675859,1756705861331,-404.0945111,0.00015073,2]
[382675860,1756705861341,-500.0,0.00015073,2]
[382675861,1756705861351,-500.0,0.00015073,2]
[382675862,1756705861360,-500.0,0.00015073,2]
[382675863,1756705861370,-501.04351762,0.00015073,2]
[382675864,1756705861380,-75094.62736541,0.00015079,2]
[382675865,1756705861389,-151.0,0.000151,2]
[382675866,1756705861399,-1000.0,0.00015121,2]
[382675867,1756705861408,-1000.0,0.00015121,2]
[382675868,1756705861418,-562.38897382,0.00015121,2]
[382675869,1756705861428,-1000.0,0.00015121,2]
[382675870,1756705861437,-1000.0,0.00015121,2]
[382675871,1756705861446,-1000.0,0.00015121,2]
[382675872,1756705861455,-1000.0,0.00015121,2]
[382675873,1756705861464,-1000.0,0.00015121,2]
[382675874,1756705861474,-1000.0,0.00015121,2]
[382675875,1756705861483,-1000.0,0.00015121,2]
[382675876,1756705861492,-1000.0,0.00015121,2]
[382675877,1756705861502,-1000.0,0.00015121,2]
[382675878,1756705861511,-1000.0,0.00015121,2]
[382675879,1756705861520,-1000.0,0.00015121,2]
[382675880,1756705861530,-1000.0,0.00015121,2]
[382675881,1756705861539,-1000.0,0.00015121,2]
[382675882,1756705861548,-1000.0,0.00015121,2]
[382675883,1756705861557,-1001.46562406,0.00015121,2]
[382675884,1756705861567,-753.8454926,0.00015121,2]
[382675885,1756705861576,-1000.0,0.00015121,2]
[382675886,1756705861586,-502.70008143,0.00015121,2]
[382675887,1756705861596,-501.55060446,0.00015121,2]
[382675888,1756705861606,-1000.0,0.00015121,2]
[382675889,1756705861615,-1000.0,0.00015121,2]
[382675890,1756705861625,-1000.0,0.00015121,2]
[382675891,1756705861634,-1000.0,0.00015121,2]
[382675892,1756705861643,-752.53007301,0.00015121,2]
[382675893,1756705861653,-714.91044673,0.00015121,2]
[382675894,1756705861663,-525.08306546,0.00015121,2]
[382675895,1756705861672,-1000.0,0.00015121,2]
[382675896,1756705861681,-1000.0,0.00015121,2]
[382675897,1756705861691,-1000.0,0.00015121,2]
[382675898,1756705861700,-664.89562748,0.00015121,2]
[382675899,1756705861709,-1000.0,0.00015121,2]
[382675900,1756705861718,-1001.36695083,0.00015121,2]
[382675901,1756705861727,-186.9679042,0.00015126,2]
[382675902,1756705861737,-959.02,0.00015126,2]
[382675903,1756705861746,-480.0,0.00015126,2]
[382675904,1756705861755,-480.0,0.00015126,2]
[382675905,1756705861765,-480.0,0.00015126,2]
[382675906,1756705861774,-1007.69,0.00015126,2]
[382675907,1756705861784,-480.0,0.00015126,2]
[382675908,1756705861793,-480.0,0.00015126,2]
[382675909,1756705861803,-480.0,0.00015126,2]
[382675910,1756705861811,-213.21681394,0.00015126,2]
[382675911,1756705861821,-480.0,0.00015126,2]
[382675912,1756705861831,-480.0,0.00015126,2]
[382675913,1756705861840,-724.16,0.00015126,2]
[382675914,1756705861850,-588.81,0.00015126,2]
[382675915,1756705861860,-480.0,0.00015126,2]
[382675916,1756705861869,-480.0,0.00015126,2]
[382675917,1756705861878,-1201.71,0.00015126,2]
[382675918,1756705861887,-511.63,0.00015126,2]
[382675919,1756705861897,-2316.86,0.00015126,2]
[382675920,1756705861906,-480.0,0.00015126,2]
[382675921,1756705861916,-480.0,0.00015126,2]
[382675922,1756705861925,-480.0,0.00015126,2]
[382675923,1756705861935,-536.9,0.00015126,2]
[382675924,1756705861944,-480.0,0.00015126,2]
[382675925,1756705861954,-500.12,0.00015126,2]
[382675926,1756705861963,-550.96,0.00015126,2]
[382675927,1756705861973,-1209.8,0.00015126,2]
[382675928,1756705861982,-480.0,0.00015126,2]
[382675929,1756705861992,-480.0,0.00015126,2]
[382675930,1756705862002,-601.47,0.00015126,2]
[382675931,1756705862012,-480.0,0.00015126,2]
[382675932,1756705862021,-480.0,0.00015126,2]
[382675933,1756705862031,-471.40083625,0.00015126,2]
[382675934,1756705862040,-2093.79,0.00015126,2]
[382675935,1756705862049,-480.0,0.00015126,2]
[382675936,1756705862059,-688.09,0.00015126,2]
[382675937,1756705862068,-893.1,0.00015126,2]
[382675938,1756705862077,-480.0,0.00015126,2]
[382675939,1756705862087,-1222.02,0.00015126,2]
[382675940,1756705862097,-1814.94,0.00015126,2]
[382675941,1756705862106,-594.12,0.00015126,2]
[382675942,1756705862115,-480.0,0.00015126,2]
[382675943,1756705862125,-480.0,0.00015126,2]
[382675944,1756705862302,-480.0,0.00015126,2]
[382675945,1756705862312,-500.01052787,0.00015126,2]
[382675946,1756705862322,-168.0,0.00015161,2]
[382675947,1756705862331,-168.0,0.00015166,2]
[382675948,1756705862341,-168.0,0.00015181,2]
[382675949,1756705862351,-168.0,0.00015183,2]
[382675950,1756705862360,-151.0,0.000152,2]
[382675951,1756705862370,-298.48796541,0.00015203,2]
[382675952,1756705862379,-166.26133616,0.00015203,2]
[382675953,1756705862390,-252.84445179,0.00015203,2]
[382675954,1756705862400,-1494.0,0.00015203,2]
[382675955,1756705862410,-775.72,0.00015225,2]
[382675956,1756705862419,-661.01,0.00015225,2]
[382675957,1756705862428,-1408.26,0.00015225,2]
[382675958,1756705862437,-5249.77,0.00015225,2]
[382675959,1756705862447,-480.0,0.00015225,2]
[382675960,1756705862457,-830.29,0.00015225,2]
[382675961,1756705862466,-1204.97,0.00015225,2]
[382675962,1756705862476,-3257.21,0.00015225,2]
[382675963,1756705862486,-4980.36,0.00015225,2]
[382675964,1756705862495,-1963.55,0.00015225,2]
[382675965,1756705862505,-622.47,0.00015225,2]
[382675966,1756705862515,-1425.86,0.00015225,2]
[382675967,1756705862524,-480.0,0.00015225,2]
[382675968,1756705862534,-480.0,0.00015226,2]
[382675969,1756705862544,-194.02137911,0.00015226,2]
[382675970,1756705862553,-480.0,0.00015226,2]
[382675971,1756705862564,-480.0,0.00015226,2]
[382675972,1756705862574,-720.62,0.00015226,2]
[382675973,1756705862584,-480.0,0.00015226,2]
[382675974,1756705862594,-1045.3,0.00015226,2]
[382675975,1756705862604,-700.16,0.00015226,2]
[382675976,1756705862615,-480.0,0.00015226,2]
[382675977,1756705862625,-620.08695432,0.00015226,2]
[382675978,1756705862635,-480.0,0.00015226,2]
[382675979,1756705862644,-480.0,0.00015226,2]
[382675980,1756705862653,-544.45,0.00015226,2]
[382675981,1756705862663,-724.58,0.00015226,2]
[382675982,1756705862672,-480.0,0.00015226,2]
[382675983,1756705862681,-480.0,0.00015226,2]
[382675984,1756705862691,-892.82,0.00015226,2]
[382675985,1756705862700,-480.0,0.00015226,2]
[382675986,1756705862709,-821.3,0.00015226,2]
[382675987,1756705862719,-809.36,0.00015226,2]
[382675988,1756705862728,-1025.49,0.00015226,2]
[382675989,1756705862738,-568.86,0.00015226,2]
[382675990,1756705862747,-480.0,0.00015226,2]
[382675991,1756705862757,-480.0,0.00015226,2]
[382675992,1756705862767,-604.84,0.00015226,2]
[382675993,1756705862776,-820.88,0.00015226,2]
[382675994,1756705862785,-480.0,0.00015226,2]
[382675995,1756705862795,-480.0,0.00015226,2]
[382675996,1756705862804,-668.21,0.00015226,2]
[382675997,1756705862814,-480.0,0.00015226,2]
[382675998,1756705862823,-480.0,0.00015226,2]
[382675999,1756705862833,-678.37,0.00015226,2]
[382676000,1756705862842,-480.0,0.00015226,2]
[382676001,1756705862852,-705.04,0.00015226,2]
[382676002,1756705862861,-480.0,0.00015226,2]
[382676003,1756705862871,-780.52,0.00015226,2]
[382676004,1756705862881,-480.0,0.00015226,2]
[382676005,1756705862890,-480.0,0.00015226,2]
[382676006,1756705862899,-480.0,0.00015226,2]
[382676007,1756705862908,-827.91,0.00015226,2]
[382676008,1756705862917,-480.0,0.00015226,2]
[382676009,1756705862927,-480.0,0.00015226,2]
[382676010,1756705862936,-480.0,0.00015226,2]
[382676011,1756705862945,-918.17,0.00015226,2]
[382676012,1756705862955,-1131.63,0.00015226,2]
[382676013,1756705862964,-480.0,0.00015226,2]
[382676014,1756705862973,-488.26,0.00015226,2]
[382676015,1756705862982,-480.0,0.00015226,2]
[382676016,1756705862991,-480.0,0.00015226,2]
[382676017,1756705863001,-850.44,0.00015226,2]
[382676018,1756705863011,-3629.01,0.00015226,2]
[382676019,1756705863229,-461.0,0.00015298,2]
[382676020,1756705863239,-151.0,0.000153,2]
[382676021,1756705863249,-480.0,0.00015324,2]
[382676022,1756705863258,-480.0,0.00015324,2]
[382676023,1756705863268,-528.2,0.00015324,2]
[382676024,1756705863278,-480.0,0.00015324,2]
[382676025,1756705863287,-480.0,0.00015324,2]
[382676026,1756705863297,-480.0,0.00015324,2]
[382676027,1756705863307,-480.0,0.00015324,2]
[382676028,1756705863316,-480.0,0.00015324,2]
[382676029,1756705863325,-976.53,0.00015324,2]
[382676030,1756705863335,-1015.92,0.00015324,2]
[382676031,1756705863345,-480.0,0.00015324,2]
[382676032,1756705863355,-480.0,0.00015324,2]
[382676033,1756705863364,-888.21,0.00015324,2]
[382676034,1756705863374,-2136.21,0.00015324,2]
[382676035,1756705863383,-480.0,0.00015324,2]
[382676036,1756705863392,-1101.63,0.00015324,2]
[382676037,1756705863402,-710.3,0.00015324,2]
[382676038,1756705863411,-516.35,0.00015324,2]
[382676039,1756705863420,-1380.56,0.00015324,2]
[382676040,1756705863430,-619.66,0.00015324,2]
[382676041,1756705863440,-621.5,0.00015324,2]
[382676042,1756705863449,-550.2,0.00015324,2]
[382676043,1756705863459,-445.02023918,0.00015325,2]
[382676044,1756705863468,-480.0,0.00015325,2]
[382676045,1756705863477,-691.89,0.00015325,2]
[382676046,1756705863486,-480.0,0.00015325,2]
[382676047,1756705863495,-480.0,0.00015325,2]
[382676048,1756705863504,-480.0,0.00015325,2]
[382676049,1756705863514,-480.0,0.00015325,2]
[382676050,1756705863523,-856.14,0.00015325,2]
[382676051,1756705863533,-814.59,0.00015325,2]
[382676052,1756705863542,-480.0,0.00015325,2]
[382676053,1756705863551,-480.0,0.00015325,2]
[382676054,1756705863560,-230.74040021,0.00015325,2]
[382676055,1756705863569,-688.69,0.00015325,2]
[382676056,1756705863578,-480.0,0.00015325,2]
[382676057,1756705863587,-480.0,0.00015325,2]
[382676058,1756705863596,-480.0,0.00015325,2]
[382676059,1756705863605,-310.72329907,0.00015325,2]
[382676060,1756705863614,-480.0,0.00015325,2]
[382676061,1756705863623,-480.0,0.00015325,2]
[382676062,1756705863632,-808.33,0.00015325,2]
[382676063,1756705863641,-1109.05,0.00015325,2]
[382676064,1756705863650,-480.0,0.00015325,2]
[382676065,1756705863659,-486.19925006,0.00015325,2]
[382676066,1756705863668,-743.86,0.00015325,2]
[382676067,1756705863678,-3283.55,0.00015325,2]
[382676068,1756705863687,-480.0,0.00015325,2]
[382676069,1756705863696,-480.0,0.00015325,2]
[382676070,1756705863705,-480.0,0.00015325,2]
[382676071,1756705863714,-480.0,0.00015325,2]
[382676072,1756705863723,-480.0,0.00015325,2]
[382676073,1756705863732,-499.7,0.00015325,2]
[382676074,1756705863742,-480.0,0.00015325,2]
[382676075,1756705863751,-480.0,0.00015325,2]
[382676076,1756705863760,-480.0,0.00015325,2]
[382676077,1756705863769,-480.0,0.00015325,2]
[382676078,1756705863778,-480.0,0.00015325,2]
[382676079,1756705863787,-480.0,0.00015325,2]
[382676080,1756705863796,-872.89,0.00015325,2]
[382676081,1756705863805,-522.84,0.00015325,2]
[382676082,1756705863814,-1227.61,0.00015325,2]
[382676083,1756705863823,-480.0,0.00015325,2]
[382676084,1756705863832,-629.74,0.00015325,2]
[382676085,1756705863841,-480.0,0.00015325,2]
[382676086,1756705863851,-1198.1,0.00015325,2]
[382676087,1756705863860,-1139.62,0.00015325,2]
[382676088,1756705863870,-483.4,0.00015325,2]
[382676089,1756705863879,-1072.0,0.00015325,2]
[382676090,1756705863888,-1101.02,0.00015325,2]
[382676091,1756705863898,-480.0,0.00015325,2]
[382676092,1756705863907,-480.0,0.00015325,2]
[382676093,1756705863916,-480.0,0.00015325,2]
[382676094,1756705863926,-480.0,0.00015325,2]
[382676095,1756705863935,-480.0,0.00015325,2]
[382676096,1756705863945,-1135.83,0.00015325,2]
[382676097,1756705863954,-480.0,0.00015325,2]
[382676098,1756705863963,-480.0,0.00015325,2]
[382676099,1756705863974,-480.0,0.00015325,2]
[382676100,1756705863983,-480.0,0.00015325,2]
[382676101,1756705863993,-480.0,0.00015325,2]
[382676102,1756705864003,-1286.2,0.00015325,2]
[382676103,1756705864013,-480.0,0.00015325,2]
[382676104,1756705864024,-1055.18,0.00015325,2]
[382676105,1756705864033,-480.0,0.00015325,2]
[382676106,1756705864043,-1365.17,0.00015325,2]
[382676107,1756705864053,-242.80644912,0.00015325,2]
[382676108,1756705864062,-480.0,0.00015325,2]
[382676109,1756705864072,-480.0,0.00015325,2]
[382676110,1756705864082,-480.0,0.00015325,2]
[382676111,1756705864092,-480.0,0.00015325,2]
[382676112,1756705864103,-480.0,0.00015325,2]
[382676113,1756705864112,-480.0,0.00015325,2]
[382676114,1756705864121,-480.0,0.00015325,2]
[382676115,1756705864132,-480.0,0.00015325,2]
[382676116,1756705864143,-1190.23,0.00015325,2]
[382676117,1756705864152,-480.0,0.00015325,2]
[382676118,1756705864161,-480.0,0.00015325,2]
[382676119,1756705864171,-1891.18,0.00015325,2]
[382676120,1756705864181,-755.77,0.00015325,2]
[382676121,1756705864191,-1212.9,0.00015325,2]
[382676122,1756705864201,-560.69,0.00015325,2]
[382676123,1756705864210,-599.63,0.00015325,2]
[382676124,1756705864221,-296.77708557,0.00015325,2]
[382676125,1756705864231,-231.59225965,0.00015325,2]
[382676126,1756705864711,-1488.68,0.00014129,2]
[382676127,1756705864721,-1488.68,0.00014403,2]
[382676128,1756705864731,-1488.68,0.00014677,2]
[382676129,1756705864740,-1488.68,0.00014951,2]
[382676130,1756705864749,-1488.68,0.00015225,2]
[382676131,1756705864759,-223.09472781,0.00015325,2]
[382676132,1756705864768,-481.69695637,0.00015325,2]
[382676133,1756705864777,-607.54,0.00015325,2]
[382676134,1756705864786,-685.7,0.00015325,2]
[382676135,1756705864796,-546.46,0.00015325,2]
[382676136,1756705864805,-1337.47,0.00015325,2]
[382676137,1756705864815,-700.77,0.00015326,2]
[382676138,1756705864824,-480.0,0.00015326,2]
[382676139,1756705864833,-850.15,0.00015326,2]
[382676140,1756705864844,-1149.69,0.00015326,2]
[382676141,1756705864854,-1225.66,0.00015326,2]
[382676142,1756705864863,-480.0,0.00015326,2]
[382676143,1756705864874,-480.0,0.00015326,2]
[382676144,1756705864883,-646.96,0.00015326,2]
[382676145,1756705864894,-633.6,0.00015326,2]
[382676146,1756705864903,-480.0,0.00015326,2]
[382676147,1756705864913,-480.0,0.00015326,2]
[382676148,1756705864922,-480.0,0.00015326,2]
[382676149,1756705864932,-480.0,0.00015326,2]
[382676150,1756705864941,-912.11,0.00015326,2]
[382676151,1756705864951,-480.0,0.00015326,2]
[382676152,1756705864960,-480.0,0.00015326,2]
[382676153,1756705864969,-946.43,0.00015326,2]
[382676154,1756705864978,-480.0,0.00015326,2]
[382676155,1756705864987,-480.0,0.00015326,2]
[382676156,1756705864997,-888.15,0.00015326,2]
[382676157,1756705865006,-1589.86,0.00015326,2]
[382676158,1756705865016,-480.0,0.00015326,2]
[382676159,1756705865025,-480.0,0.00015326,2]
[382676160,1756705865035,-480.0,0.00015326,2]
[382676161,1756705865044,-466.03785895,0.00015326,2]
[382676162,1756705865053,-480.0,0.00015326,2]
[382676163,1756705865062,-641.85,0.00015326,2]
[382676164,1756705865072,-480.0,0.00015326,2]
[382676165,1756705865081,-480.0,0.00015326,2]
[382676166,1756705865091,-592.0,0.00015326,2]
[382676167,1756705865100,-482.33626038,0.00015326,2]
[382676168,1756705865110,-480.0,0.00015326,2]
[382676169,1756705865119,-480.0,0.00015326,2]
[382676170,1756705865129,-480.0,0.00015326,2]
[382676171,1756705865296,-480.0,0.00015327,2]
[382676172,1756705865306,-596.92,0.00015327,2]
[382676173,1756705865315,-480.0,0.00015327,2]
[382676174,1756705865325,-197.12747967,0.00015327,2]
[382676175,1756705865336,-480.0,0.00015327,2]
[382676176,1756705865346,-480.0,0.00015327,2]
[382676177,1756705865356,-480.0,0.00015327,2]
[382676178,1756705865366,-480.0,0.00015327,2]
[382676179,1756705865376,-480.0,0.00015327,2]
[382676180,1756705865385,-480.0,0.00015327,2]
[382676181,1756705865394,-480.0,0.00015327,2]
[382676182,1756705865403,-861.77,0.00015327,2]
[382676183,1756705865413,-988.7,0.00015327,2]
[382676184,1756705865422,-625.19061869,0.00015327,2]
[382676185,1756705865432,-480.0,0.00015327,2]
[382676186,1756705865442,-509.77,0.00015327,2]
[382676187,1756705865452,-480.0,0.00015327,2]
[382676188,1756705865461,-969.64,0.00015327,2]
[382676189,1756705865471,-480.0,0.00015327,2]
[382676190,1756705865481,-526.32408634,0.00015327,2]
[382676191,1756705865491,-480.0,0.00015327,2]
[382676192,1756705865500,-482.36,0.00015327,2]
[382676193,1756705865510,-480.0,0.00015327,2]
[382676194,1756705865519,-480.0,0.00015327,2]
[382676195,1756705865529,-480.0,0.00015327,2]
[382676196,1756705865537,-480.0,0.00015327,2]
[382676197,1756705865547,-660.19,0.00015327,2]
[382676198,1756705865556,-764.66,0.00015327,2]
[382676199,1756705865566,-783.34,0.00015327,2]
[382676200,1756705865576,-480.0,0.00015327,2]
[382676201,1756705865586,-480.0,0.00015327,2]
[382676202,1756705865596,-500.77,0.00015327,2]
[382676203,1756705865606,-480.0,0.00015327,2]
[382676204,1756705865615,-480.0,0.00015327,2]
[382676205,1756705865625,-480.0,0.00015327,2]
[382676206,1756705865635,-822.59,0.00015327,2]
[382676207,1756705865644,-190.75886297,0.00015327,2]
[382676208,1756705865654,-269.0440339,0.00015327,2]
[382676209,1756705865664,-570.92,0.00015327,2]
[382676210,1756705865673,-1104.84,0.00015327,2]
[382676211,1756705865682,-480.0,0.00015327,2]
[382676212,1756705865692,-480.0,0.00015327,2]
[382676213,1756705865702,-480.0,0.00015327,2]
[382676214,1756705865711,-263.14616992,0.00015327,2]
[382676215,1756705865720,-480.0,0.00015327,2]
[382676216,1756705865730,-480.0,0.00015327,2]
[382676217,1756705865740,-480.0,0.00015327,2]
[382676218,1756705865749,-480.0,0.00015327,2]
[382676219,1756705865759,-195.93906689,0.00015327,2]
[382676220,1756705865768,-533.97,0.00015327,2]
[382676221,1756705865777,-480.0,0.00015327,2]
[382676222,1756705865787,-669.49,0.00015327,2]
[382676223,1756705865796,-775.85,0.00015327,2]
[382676224,1756705865805,-480.0,0.00015327,2]
[382676225,1756705865815,-480.0,0.00015327,2]
[382676226,1756705865825,-546.95,0.00015327,2]
[382676227,1756705865834,-480.0,0.00015327,2]
[382676228,1756705865845,-980.42,0.00015327,2]
[382676229,1756705865855,-480.0,0.00015327,2]
[382676230,1756705865864,-871.82,0.00015327,2]
[382676231,1756705865874,-512.89,0.00015327,2]
[382676232,1756705865884,-480.0,0.00015327,2]
[382676233,1756705865894,-480.0,0.00015327,2]
[382676234,1756705865905,-480.0,0.00015327,2]
[382676235,1756705865915,-590.08286174,0.00015327,2]
[382676236,1756705865925,-480.0,0.00015327,2]
[382676237,1756705865934,-480.0,0.00015327,2]
[382676238,1756705865943,-480.0,0.00015327,2]
[382676239,1756705865954,-536.17,0.00015327,2]
[382676240,1756705865963,-1295.49,0.00015327,2]
[382676241,1756705865972,-480.0,0.00015327,2]
[382676242,1756705865982,-480.0,0.00015327,2]
[382676243,1756705865992,-761.22,0.00015327,2]
[382676244,1756705866002,-480.0,0.00015327,2]
[382676245,1756705866012,-168.0,0.00015329,2]
[382676246,1756705866023,-480.0,0.0001533,2]
[382676247,1756705866032,-480.0,0.0001533,2]
[382676248,1756705866042,-657.94,0.0001533,2]
[382676249,1756705866052,-176.63,0.0001533,2]
[382676250,1756705866061,-480.0,0.0001533,2]
[382676251,1756705866071,-550.62,0.0001533,2]
[382676252,1756705866080,-289.3796986,0.00015331,2]
[382676253,1756705866089,-542.83,0.00015331,2]
[382676254,1756705866098,-500.0,0.00015333,2]
[382676255,1756705866108,-151.0,0.00015333,2]
[382676256,1756705866118,-168.0,0.0001535,2]
[382676257,1756705866127,-1500.0,0.00015368,2]
[382676258,1756705866140,-1500.0,0.00015368,2]
[382676259,1756705866149,-1004.37855695,0.00015368,2]
[382676260,1756705866158,-1500.0,0.00015368,2]
[382676261,1756705866170,-1680.0,0.00015369,2]